fUSD/lending_fUSD_20250702
["ID","MTS","AMOUNT","RATE_DAILY","PERIOD"]
[369044543,1751443856929,-490.0,0.00016438,2]
[369044545,1751443856939,-1866.57,0.00016438,2]
[369044547,1751443856948,-490.0,0.00016438,2]
[369044549,1751443856958,-1063.5,0.00016438,2]
[369044551,1751443856967,-490.0,0.00016438,2]
[369044553,1751443856977,-490.0,0.00016438,2]
[369044555,1751443856987,-490.0,0.00016438,2]
[369044556,1751443856996,-490.0,0.00016438,2]
[369044558,1751443857006,-724.37,0.00016438,2]
[369044560,1751443857015,-490.0,0.00016438,2]
[369044562,1751443857024,-520.34,0.00016438,2]
[369044564,1751443857033,-3035.03,0.00016438,2]
[369044566,1751443857043,-490.0,0.00016438,2]
[369044568,1751443857053,-490.0,0.00016438,2]
[369044570,1751443857062,-533.39,0.00016438,2]
[369044572,1751443857071,-490.0,0.00016438,2]
[369044574,1751443857080,-633.50839659,0.00016438,2]
[369044576,1751443857089,-490.93557014,0.00016438,2]
[369044578,1751443857099,-490.0,0.00016438,2]
[369044580,1751443857107,-1687.55,0.00016438,2]
[369044582,1751443857116,-1214.03,0.00016438,2]
[369044584,1751443857126,-490.0,0.00016438,2]
[369044586,1751443857134,-1249.2,0.00016438,2]
[369044588,1751443857143,-1776.58,0.00016438,2]
[369044590,1751443857152,-986.78,0.00016438,2]
[369044592,1751443857161,-490.0,0.00016438,2]
[369044594,1751443857170,-5522.99,0.00016438,2]
[369044596,1751443857180,-490.0,0.00016438,2]
[369044598,1751443857189,-490.0,0.00016438,2]
[369044600,1751443857198,-1422.16,0.00016438,2]
[369044602,1751443857207,-492.4811934,0.00016438,2]
[369044604,1751443857216,-490.0,0.00016438,2]
[369044606,1751443857225,-3116.67,0.00016438,2]
[369044608,1751443857234,-492.44959681,0.00016438,2]
[369044609,1751443857243,-490.0,0.00016438,2]
[369044612,1751443857253,-634.08,0.00016438,2]
[369044613,1751443857263,-2475.64,0.00016438,2]
[369044615,1751443857274,-619.58,0.00016438,2]
[369044617,1751443857283,-1908.46,0.00016438,2]
[369044619,1751443857293,-490.0,0.00016438,2]
[369044622,1751443857302,-490.0,0.00016438,2]
[369044624,1751443857312,-490.0,0.00016438,2]
[369044626,1751443857321,-1354.43,0.00016438,2]
[369044628,1751443857330,-491.43727134,0.00016438,2]
[369044630,1751443857339,-1419.9,0.00016438,2]
[369044631,1751443857349,-331.60444597,0.00016438,2]
[369044634,1751443857358,-490.0,0.00016438,2]
[369044635,1751443857367,-1284.18,0.00016438,2]
[369044637,1751443857376,-1430.79,0.00016438,2]
[369044639,1751443857385,-151.0,0.00016438,2]
[369044641,1751443857394,-490.0,0.00016438,2]
[369044643,1751443857403,-151.0,0.00016438,2]
[369044645,1751443857413,-490.0,0.00016438,2]
[369044647,1751443857422,-490.0,0.00016438,2]
[369044649,1751443857431,-490.0,0.00016438,2]
[369044651,1751443857440,-991.84,0.00016438,2]
[369044653,1751443857449,-490.0,0.00016438,2]
[369044655,1751443857458,-490.0,0.00016438,2]
[369044657,1751443857467,-998.72,0.00016438,2]
[369044659,1751443857475,-2776.24,0.00016438,2]
[369044661,1751443857485,-1395.47,0.00016438,2]
[369044663,1751443857494,-2375.54,0.00016438,2]
[369044665,1751443857504,-3194.7,0.00016438,2]
[369044667,1751443857514,-311.14814634,0.00016438,2]
[369044669,1751443857523,-486.39871672,0.00016438,2]
[369044671,1751443857533,-558.82,0.00016438,2]
[369044673,1751443857542,-151.0,0.00016438,2]
[369044675,1751443857551,-151.0,0.00016438,2]
[369044677,1751443857560,-490.0,0.00016438,2]
[369044679,1751443857569,-618.41,0.00016438,2]
[369044680,1751443857578,-490.0,0.00016438,2]
[369044682,1751443857587,-617.65,0.00016438,2]
[369044685,1751443857597,-937.35,0.00016438,2]
[369044686,1751443857608,-490.0,0.00016438,2]
[369044688,1751443857617,-936.18,0.00016438,2]
[369044690,1751443857626,-490.0,0.00016438,2]
[369044693,1751443857636,-490.0,0.00016438,2]
[369044694,1751443857646,-151.0,0.00016438,2]
[369044696,1751443857656,-151.0,0.00016438,2]
[369044698,1751443857665,-999.04,0.00016438,2]
[369044700,1751443857674,-2005.84,0.00016438,2]
[369044702,1751443857684,-490.0,0.00016438,2]
[369044705,1751443857694,-490.0,0.00016438,2]
[369044707,1751443857704,-490.0,0.00016438,2]
[369044708,1751443857714,-2660.49,0.00016438,2]
[369044710,1751443857724,-490.0,0.00016438,2]
[369044713,1751443857734,-2164.46,0.00016438,2]
[369044715,1751443857743,-490.0,0.00016438,2]
[369044716,1751443857752,-1594.66,0.00016438,2]
[369044718,1751443857762,-5093.75,0.00016438,2]
[369044720,1751443857771,-490.0,0.00016438,2]
[369044722,1751443857781,-1320.17,0.00016438,2]
[369044724,1751443857790,-490.0,0.00016438,2]
[369044726,1751443857800,-225.53753045,0.00016438,2]
[369044729,1751443857810,-1124.39,0.00016438,2]
[369044731,1751443857820,-2792.4654,0.00016438,2]
[369044733,1751443857830,-862.14,0.00016438,2]
[369044735,1751443857839,-490.0,0.00016438,2]
[369044737,1751443857849,-490.0,0.00016438,2]
[369044739,1751443857860,-1147.1,0.00016438,2]
[369044741,1751443857870,-497.25883159,0.00016438,2]
[369044743,1751443857879,-490.0,0.00016438,2]
[369044745,1751443857889,-151.0,0.00016438,2]
[369044747,1751443857900,-490.0,0.00016438,2]
[369044749,1751443857910,-151.0,0.00016438,2]
[369044751,1751443857920,-490.0,0.00016438,2]
[369044753,1751443857930,-490.0,0.00016438,2]
[369044755,1751443857940,-490.0,0.00016438,2]
[369044757,1751443857950,-151.0,0.00016438,2]
[369044759,1751443857960,-1000.0,0.00016438,2]
[369044761,1751443857970,-14179.41,0.00016438,2]
[369044763,1751443857984,-1514.73,0.00016438,2]
[369044765,1751443857993,-490.0,0.00016438,2]
[369044767,1751443858003,-490.0,0.00016438,2]
[369044769,1751443858012,-490.0,0.00016438,2]
[369044771,1751443858022,-490.0,0.00016438,2]
[369044773,1751443858031,-151.0,0.00016438,2]
[369044775,1751443858041,-490.0,0.00016438,2]
[369044777,1751443858050,-151.0,0.00016438,2]
[369044779,1751443858060,-9322.72,0.00016438,2]
[369044781,1751443858070,-4569.47,0.00016438,2]
[369044783,1751443858079,-2269.76,0.00016438,2]
[369044785,1751443858088,-490.0,0.00016438,2]
[369044787,1751443858097,-573.12,0.00016438,2]
[369044789,1751443858106,-627.64,0.00016438,2]
[369044791,1751443858115,-490.0,0.00016438,2]
[369044793,1751443858125,-490.0,0.00016438,2]
[369044795,1751443858134,-495.92,0.00016438,2]
[369044797,1751443858143,-490.0,0.00016438,2]
[369044799,1751443858151,-490.0,0.00016438,2]
[369044801,1751443858160,-490.0,0.00016438,2]
[369044803,1751443858169,-490.0,0.00016438,2]
[369044805,1751443858179,-490.0,0.00016438,2]
[369044807,1751443858188,-490.0,0.00016438,2]
[369044809,1751443858196,-490.0,0.00016438,2]
[369044811,1751443858205,-18934.62,0.00016438,2]
[369044813,1751443858216,-490.0,0.00016438,2]
[369044815,1751443858226,-490.0,0.00016438,2]
[369044817,1751443858235,-490.0,0.00016438,2]
[369044819,1751443858244,-490.0,0.00016438,2]
[369044821,1751443858253,-490.0,0.00016438,2]
[369044823,1751443858262,-1374.78,0.00016438,2]
[369044825,1751443858272,-2535.73,0.00016438,2]
[369044827,1751443858281,-1298.81,0.00016438,2]
[369044829,1751443858290,-490.0,0.00016438,2]
[369044831,1751443858299,-490.0,0.00016438,2]
[369044833,1751443858308,-545.69,0.00016438,2]
[369044835,1751443858318,-490.0,0.00016438,2]
[369044837,1751443858327,-153.574074,0.00016438,2]
[369044839,1751443858336,-490.0,0.00016438,2]
[369044841,1751443858346,-490.0,0.00016438,2]
[369044843,1751443858355,-490.0,0.00016438,2]
[369044845,1751443858364,-490.0,0.00016438,2]
[369044847,1751443858373,-490.0,0.00016438,2]
[369044849,1751443858383,-566.4561669,0.00016438,2]
[369044851,1751443858392,-1361.99,0.00016438,2]
[369044853,1751443858402,-490.0,0.00016438,2]
[369044855,1751443858411,-490.0,0.00016438,2]
[369044857,1751443858420,-490.0,0.00016438,2]
[369044859,1751443858429,-10924.08,0.00016438,2]
[369044861,1751443858439,-623.31728713,0.00016438,2]
[369044863,1751443858447,-490.0,0.00016438,2]
[369044865,1751443858456,-490.0,0.00016438,2]
[369044867,1751443858465,-973.05,0.00016438,2]
[369044869,1751443858474,-490.0,0.00016438,2]
[369044871,1751443858483,-928.2,0.00016438,2]
[369044873,1751443858492,-1027.02,0.00016438,2]
[369044875,1751443858501,-151.0,0.00016438,2]
[369044877,1751443858511,-892.71,0.00016438,2]
[369044879,1751443858520,-151.0,0.00016438,2]
[369044881,1751443858529,-2040.1,0.00016438,2]
[369044898,1751443858538,-151.0,0.00016438,2]
[369044902,1751443858705,-490.0,0.00016438,2]
[369044904,1751443858715,-985.37,0.00016438,2]
[369044906,1751443858724,-490.0,0.00016438,2]
[369044908,1751443858733,-899.49,0.00016438,2]
[369044910,1751443858742,-151.0,0.00016438,2]
[369044912,1751443858752,-883.17,0.00016438,2]
[369044914,1751443858761,-490.0,0.00016438,2]
[369044916,1751443858770,-151.0,0.00016438,2]
[369044918,1751443858779,-1542.4,0.00016438,2]
[369044920,1751443858789,-151.0,0.00016438,2]
[369044922,1751443858798,-497.55442196,0.00016438,2]
[369044924,1751443858807,-490.0,0.00016438,2]
[369044926,1751443858816,-490.0,0.00016438,2]
[369044928,1751443858825,-490.0,0.00016438,2]
[369044929,1751443858834,-300.74,0.00016438,2]
[369044932,1751443858844,-304.44,0.00016438,2]
[369044934,1751443858853,-302.23,0.00016438,2]
[369044935,1751443858862,-1051.0,0.00016462,2]
[369044937,1751443858871,-151.0,0.00016462,2]
[369044939,1751443858881,-2110.375916,0.00016462,2]
[369044941,1751443858890,-2110.375916,0.00016462,2]
[369044943,1751443858899,-500.0,0.00016473,2]
[369044945,1751443858909,-500.0,0.00016473,2]
[369044947,1751443858918,-500.0,0.00016473,2]
[369044949,1751443858927,-503.80358932,0.00016473,2]
[369044951,1751443858936,-508.8747583,0.00016473,2]
[369044953,1751443858946,-500.0,0.00016473,2]
[369044955,1751443858955,-161.64408109,0.00016473,2]
[369044957,1751443858964,-500.85687905,0.00016473,2]
[369044959,1751443858975,-500.0,0.00016473,2]
[369044962,1751443858988,-500.0,0.00016473,2]
[369044964,1751443858998,-256.0,0.00016479,2]
[369044966,1751443859008,-151.0,0.00016483,2]
[369044968,1751443859019,-151.0,0.00016483,2]
[369044970,1751443859028,-151.0,0.00016483,2]
[369044972,1751443859037,-151.0,0.00016483,2]
[369044974,1751443859046,-151.0,0.00016483,2]
[369044976,1751443859056,-3430.582997,0.00016483,2]
[369044978,1751443859065,-3430.582997,0.00016483,2]
[369044980,1751443859074,-151.0,0.00016483,2]
[369044982,1751443859083,-151.0,0.00016483,2]
[369044984,1751443859092,-151.0,0.00016483,2]
[369044986,1751443859101,-151.0,0.00016483,2]
[369044987,1751443859111,-151.0,0.00016483,2]
[369044990,1751443859120,-151.0,0.00016483,2]
[369044991,1751443859129,-151.0,0.00016483,2]
[369044993,1751443859139,-206.068792,0.00016483,2]
[369044995,1751443859148,-500.0,0.0001649,2]
[369044996,1751443859157,-731.34,0.000165,2]
[369044997,1751443859166,-150.0,0.000165,2]
[369044998,1751443859175,-1013.0,0.000165,2]
[369044999,1751443859184,-4032.0,0.00016506,2]
[369045000,1751443859193,-3041.14151097,0.00016509,2]
[369045001,1751443859202,-3098.01869027,0.00016521,2]
[369045002,1751443859211,-347.684436,0.00016531,2]
[369045003,1751443859220,-526.82357722,0.0001654,2]
[369045004,1751443859229,-500.0,0.0001654,2]
[369045005,1751443859239,-996.93,0.0001654,2]
[369045006,1751443859248,-1000.0,0.0001654,2]
[369045007,1751443859257,-151.0,0.00016541,2]
[369045008,1751443859266,-160.441034,0.00016541,2]
[369045010,1751443859275,-151.0,0.00016541,2]
[369045012,1751443859286,-161.215886,0.00016541,2]
[369045014,1751443859295,-154.219262,0.00016541,2]
[369045016,1751443859304,-151.0,0.00016541,2]
[369045018,1751443859313,-151.0,0.00016541,2]
[369045020,1751443859322,-151.0,0.00016541,2]
[369045022,1751443859331,-151.0,0.00016541,2]
[369045024,1751443859341,-1006.9665,0.00016542,2]
[369045026,1751443859350,-1000.0,0.00016542,2]
[369045029,1751443859360,-500.0,0.00016542,2]
[369045031,1751443859369,-500.0,0.00016542,2]
[369045032,1751443859378,-525.27578369,0.00016542,2]
[369045034,1751443859387,-676.7,0.00016542,2]
[369045036,1751443859396,-676.7,0.00016542,2]
[369045038,1751443859405,-676.7,0.00016542,2]
[369045040,1751443859414,-500.0,0.00016542,2]
[369045042,1751443859423,-500.0,0.00016542,2]
[369045044,1751443859433,-500.0,0.00016542,2]
[369045046,1751443859442,-500.0,0.00016542,2]
[369045048,1751443859451,-500.0,0.00016542,2]
[369045050,1751443859460,-500.0,0.00016542,2]
[369045052,1751443859470,-155.32441,0.00016542,2]
[369045054,1751443859479,-151.0,0.00016542,2]
[369045056,1751443859488,-500.0,0.00016542,2]
[369045058,1751443859498,-500.0,0.00016542,2]
[369045060,1751443859507,-500.0,0.00016542,2]
[369045062,1751443859516,-500.0,0.00016542,2]
[369045064,1751443859527,-500.0,0.00016542,2]
[369045066,1751443859536,-500.0,0.00016542,2]
[369045068,1751443859546,-500.0,0.00016542,2]
[369045070,1751443859556,-151.0,0.00016542,2]
[369045072,1751443859565,-996.93,0.00016542,2]
[369045074,1751443859575,-996.93,0.00016542,2]
[369045076,1751443859584,-996.93,0.00016542,2]
[369045079,1751443859594,-151.0,0.00016542,2]
[369045080,1751443859603,-151.0,0.00016542,2]
[369045082,1751443859612,-175.509291,0.00016542,2]
[369045084,1751443859622,-151.0,0.00016542,2]
[369045087,1751443859632,-168999.66841418,0.00016543,2]
[369045150,1751443860241,-10659.09730476,0.00016543,2]
[369045152,1751443860255,-1156.2,0.00016543,2]
[369045154,1751443860267,-234825.71448821,0.00016543,2]
[369045156,1751443860281,-77234.78078134,0.00016543,2]
[369045159,1751443860292,-969.62479903,0.00016543,2]
[369045161,1751443860304,-929.9198938,0.00016543,2]
[369045165,1751443860330,-186124.75535932,0.00016543,2]
[369045286,1751443861495,-300.0,0.00016328,2]
[369045288,1751443861504,-250.0,0.0001633,2]
[369045290,1751443861514,-493.36143908,0.00016438,2]
[369045292,1751443861523,-151.0,0.00016438,2]
[369045294,1751443861533,-151.0,0.00016438,2]
[369045296,1751443861541,-3820.07736875,0.00016543,2]
[369045386,1751443862497,-151.0,0.00016438,2]
[369045388,1751443862507,-490.0,0.00016438,2]
[369045390,1751443862516,-1228.67,0.00016438,2]
[369045392,1751443862526,-3039.73455864,0.00016543,2]
[369045395,1751443862537,-6657.1585501,0.00016543,2]
[369045397,1751443862548,-1584.35405252,0.00016543,2]
[369045948,1751443904818,266.0,0.0002739,120]
[369045952,1751443931295,160.03,0.00013699,2]
[369046086,1751444609201,-4202.09,0.00014865,2]
[369046087,1751444609312,-1000.0,0.00014865,2]
[369046088,1751444609342,-250.0,0.00015,2]
[369046090,1751444617420,980.0,0.00027397,120]
[369046092,1751444650225,706.99,0.00014872,2]
[369046100,1751444766789,-202.32,0.00015263,2]
[369046101,1751444766812,-202.32,0.00015267,2]
[369046102,1751444766833,-202.32,0.00015271,2]
[369046103,1751444766855,-202.32,0.00015275,2]
[369046104,1751444766878,-202.32,0.00015279,2]
[369046105,1751444766900,-202.32,0.00015283,2]
[369046106,1751444766922,-202.32,0.00015287,2]
[369046107,1751444766945,-202.32,0.00015291,2]
[369046108,1751444766967,-202.32,0.00015295,2]
[369046109,1751444766990,-202.32,0.00015299,2]
[369046110,1751444767012,-200.0,0.000153,2]
[369046111,1751444767034,-202.32,0.00015303,2]
[369046112,1751444767056,-202.32,0.00015307,2]
[369046113,1751444767078,-202.32,0.00015311,2]
[369046114,1751444767101,-202.32,0.00015315,2]
[369046115,1751444767123,-202.32,0.00015319,2]
[369046116,1751444767146,-202.32,0.00015323,2]
[369046117,1751444767168,-202.32,0.00015327,2]
[369046118,1751444767191,-202.32,0.00015331,2]
[369046119,1751444767212,-202.32,0.00015335,2]
[369046120,1751444767234,-202.32,0.00015339,2]
[369046121,1751444767257,-1200.0,0.0001536,2]
[369046122,1751444767281,-553.6,0.00015361,2]
[369046148,1751445031406,-250.0,0.00015232,2]
[369046150,1751445031415,-204.27,0.00015241,2]
[369046151,1751445031425,-1146.09,0.00015284,2]
[369046152,1751445031435,-656.760076,0.00015299,2]
[369046153,1751445031464,-543.239924,0.00015299,2]
[369046154,1751445031474,-1651.36538915,0.000153,2]
[369046155,1751445031595,-389.75092508,0.000153,2]
[369046156,1751445031616,-1021.78671344,0.000153,2]
[369046157,1751445031647,-2153.76133533,0.000153,2]
[369046159,1751445036233,-1989.20328656,0.000153,2]
[369046160,1751445036257,-15334.17184941,0.000153,2]
[369046171,1751445037424,-1486.05511616,0.000153,2]
[369046172,1751445037443,-1102.05535232,0.000153,2]
[369046186,1751445037966,-817.28308993,0.000153,2]
[369046359,1751445039570,-24354.92679757,0.000153,2]
[369046361,1751445039581,-256.0,0.0001536,2]
[369046363,1751445039590,-18679.07414212,0.00015361,2]
[369046367,1751445039613,-4667.32585788,0.00015361,2]
[369046369,1751445039622,-241.54167859,0.00015381,2]
[369046371,1751445039635,-775.64832141,0.00015381,2]
[369046373,1751445039644,-13935.16065868,0.000154,2]
[369046375,1751445039655,-3956.16934132,0.000154,2]
[369046376,1751445039664,-166.99,0.00015417,2]
[369046377,1751445039673,-168.93,0.00015659,2]
[369046378,1751445039682,-214.99,0.00015769,2]
[369046379,1751445039691,-300.0,0.00015868,2]
[369046380,1751445039699,-300.0,0.00015868,2]
[369046381,1751445039708,-500.0,0.00015868,2]
[369046382,1751445039717,-500.0,0.00015868,2]
[369046383,1751445039726,-500.0,0.00015868,2]
[369046384,1751445039735,-500.0,0.00015868,2]
[369046385,1751445039743,-500.0,0.00015868,2]
[369046386,1751445039752,-500.0,0.00015868,2]
[369046387,1751445039762,-500.0,0.00015868,2]
[369046388,1751445039771,-500.0,0.00015868,2]
[369046389,1751445039780,-500.0,0.00015868,2]
[369046390,1751445039788,-207.4,0.00015868,2]
[369046391,1751445039797,-500.0,0.00015868,2]
[369046392,1751445039806,-500.0,0.00015868,2]
[369046393,1751445039815,-500.0,0.00015868,2]
[369046394,1751445039825,-500.0,0.00015868,2]
[369046395,1751445039834,-500.0,0.00015868,2]
[369046397,1751445039843,-500.0,0.00015868,2]
[369046399,1751445039852,-500.0,0.00015868,2]
[369046401,1751445039862,-300.0,0.00015868,2]
[369046403,1751445039871,-500.0,0.00015868,2]
[369046405,1751445039880,-461.28479079,0.00015868,2]
[369046407,1751445039889,-318.36165206,0.00015868,2]
[369046409,1751445039898,-500.0,0.00015868,2]
[369046411,1751445039907,-500.0,0.00015868,2]
[369046413,1751445039917,-500.0,0.00015868,2]
[369046415,1751445039927,-200.0,0.000159,5]
[369046417,1751445039936,-10063.32634609,0.000159,2]
[369046419,1751445039945,-315.0,0.00015997,2]
[369046421,1751445039954,-315.0,0.00015999,2]
[369046423,1751445039963,-1038.01,0.00016,2]
[369046425,1751445039973,-171.31,0.00016,2]
[369046427,1751445039982,-327.79,0.00016,2]
[369046429,1751445039992,-456.47,0.00016,2]
[369046431,1751445040002,-315.0,0.00016018,2]
[369046433,1751445040011,-315.0,0.00016067,2]
[369046435,1751445040021,-315.0,0.00016069,2]
[369046437,1751445040030,-315.0,0.00016082,2]
[369046439,1751445040039,-168.0,0.00016106,2]
[369046441,1751445040049,-315.0,0.00016111,2]
[369046443,1751445040058,-150.99,0.00016116,2]
[369046445,1751445040068,-499.99,0.00016116,2]
[369046447,1751445040079,-5916.39,0.00016116,2]
[369046449,1751445040088,-9999.99,0.00016116,2]
[369046451,1751445040097,-315.0,0.00016155,2]
[369046453,1751445040107,-150.0,0.000162,2]
[369046455,1751445040117,-1000.0,0.000162,2]
[369046457,1751445040127,-315.0,0.00016208,2]
[369046459,1751445040136,-1000.0,0.00016238,2]
[369046461,1751445040146,-1022.0,0.000163,2]
[369046463,1751445040155,-315.0,0.00016313,2]
[369046465,1751445040165,-7487.54454488,0.00016338,2]
[369046467,1751445040174,-194.17590897,0.00016338,2]
[369046469,1751445040184,-5804.84475964,0.00016338,2]
[369046472,1751445040194,-178.1996763,0.00016338,2]
[369046474,1751445040203,-1268.1968,0.00016338,2]
[369046475,1751445040213,-871.2052622,0.00016388,2]
[369046478,1751445040223,-347.684436,0.00016395,2]
[369046479,1751445040232,-300.0,0.00016416,2]
[369046481,1751445040242,-301.89,0.00016419,2]
[369046483,1751445040252,-302.65,0.00016419,2]
[369046485,1751445040262,-304.47,0.00016419,2]
[369046487,1751445040271,-19710.03,0.0001642,2]
[369046490,1751445040282,-3277.0,0.0001643,2]
[369046492,1751445040291,-450.0,0.00016437,2]
[369046494,1751445040300,-500.0,0.00016437,2]
[369046496,1751445040310,-500.0,0.00016437,2]
[369046498,1751445040319,-500.0,0.00016437,2]
[369046500,1751445040329,-542.63507116,0.00016437,2]
[369046502,1751445040338,-500.0,0.00016437,2]
[369046503,1751445040348,-500.0,0.00016437,2]
[369046506,1751445040357,-255.30893633,0.00016437,2]
[369046507,1751445040368,-500.0,0.00016437,2]
[369046509,1751445040378,-277.84279298,0.00016437,2]
[369046512,1751445040388,-178.71625543,0.00016437,2]
[369046513,1751445040397,-490.0,0.00016438,2]
[369046516,1751445040407,-151.0,0.00016438,2]
[369046518,1751445040416,-151.0,0.00016438,2]
[369046520,1751445040426,-490.0,0.00016438,2]
[369046522,1751445040436,-490.0,0.00016438,2]
[369046524,1751445040445,-490.0,0.00016438,2]
[369046526,1751445040455,-490.0,0.00016438,2]
[369046528,1751445040464,-490.0,0.00016438,2]
[369046530,1751445040473,-490.0,0.00016438,2]
[369046531,1751445040483,-490.0,0.00016438,2]
[369046533,1751445040492,-490.0,0.00016438,2]
[369046535,1751445040502,-168.872517,0.00016438,2]
[369046537,1751445040511,-490.0,0.00016438,2]
[369046539,1751445040520,-490.0,0.00016438,2]
[369046541,1751445040529,-490.0,0.00016438,2]
[369046543,1751445040539,-490.0,0.00016438,2]
[369046545,1751445040548,-229.94464093,0.00016438,2]
[369046547,1751445040557,-154.068683,0.00016438,2]
[369046549,1751445040566,-490.0,0.00016438,2]
[369046551,1751445040576,-151.0,0.00016438,2]
[369046553,1751445040586,-490.0,0.00016438,2]
[369046555,1751445040596,-151.0,0.00016438,2]
[369046557,1751445040605,-234.798436,0.00016438,2]
[369046559,1751445040614,-490.0,0.00016438,2]
[369046561,1751445040624,-490.0,0.00016438,2]
[369046563,1751445040633,-490.0,0.00016438,2]
[369046565,1751445040642,-490.0,0.00016438,2]
[369046567,1751445040652,-490.0,0.00016438,2]
[369046570,1751445040662,-490.0,0.00016438,2]
[369046571,1751445040671,-490.0,0.00016438,2]
[369046573,1751445040680,-490.0,0.00016438,2]
[369046575,1751445040689,-491.91582942,0.00016438,2]
[369046577,1751445040699,-490.0,0.00016438,2]
[369046579,1751445040709,-490.0,0.00016438,2]
[369046581,1751445040719,-490.0,0.00016438,2]
[369046583,1751445040728,-490.0,0.00016438,2]
[369046585,1751445040737,-490.0,0.00016438,2]
[369046588,1751445040747,-552.43266373,0.00016438,2]
[369046590,1751445040757,-257.15077622,0.00016438,2]
[369046592,1751445040766,-439.34228137,0.00016438,2]
[369046594,1751445040776,-166.731889,0.00016438,2]
[369046596,1751445040786,-490.0,0.00016438,2]
[369046598,1751445040796,-154.948816,0.00016438,2]
[369046600,1751445040804,-167.261544,0.00016438,2]
[369046602,1751445040814,-157.60867,0.00016438,2]
[369046604,1751445040823,-1472.133726,0.00016438,2]
[369046606,1751445040833,-490.0,0.00016438,2]
[369046608,1751445040843,-490.0,0.00016438,2]
[369046610,1751445040853,-1580.208833,0.00016438,2]
[369046612,1751445040862,-1663.596428,0.00016438,2]
[369046614,1751445040871,-490.0,0.00016438,2]
[369046616,1751445040880,-490.0,0.00016438,2]
[369046618,1751445040890,-490.0,0.00016438,2]
[369046620,1751445040899,-490.0,0.00016438,2]
[369046622,1751445040908,-490.0,0.00016438,2]
[369046624,1751445040917,-493.87182896,0.00016438,2]
[369046626,1751445040927,-490.0,0.00016438,2]
[369046628,1751445040937,-490.0,0.00016438,2]
[369046630,1751445040947,-490.0,0.00016438,2]
[369046632,1751445040957,-490.0,0.00016438,2]
[369046634,1751445040967,-490.0,0.00016438,2]
[369046636,1751445040976,-490.0,0.00016438,2]
[369046638,1751445040986,-501.49343353,0.00016438,2]
[369046640,1751445040995,-490.0,0.00016438,2]
[369046642,1751445041005,-490.0,0.00016438,2]
[369046644,1751445041014,-534.59,0.00016438,2]
[369046646,1751445041024,-490.0,0.00016438,2]
[369046648,1751445041034,-490.0,0.00016438,2]
[369046650,1751445041043,-490.0,0.00016438,2]
[369046652,1751445041052,-490.0,0.00016438,2]
[369046654,1751445041062,-490.0,0.00016438,2]
[369046656,1751445041071,-490.0,0.00016438,2]
[369046658,1751445041080,-490.0,0.00016438,2]
[369046660,1751445041090,-490.0,0.00016438,2]
[369046662,1751445041099,-490.0,0.00016438,2]
[369046664,1751445041109,-490.0,0.00016438,2]
[369046666,1751445041118,-494.56455781,0.00016438,2]
[369046668,1751445041127,-490.0,0.00016438,2]
[369046670,1751445041137,-490.0,0.00016438,2]